Cogmind - Beta 10.2 *** ADVENTURER MODE // 2021.10.28 @ 14:38:43 Player: Driana Result: Self-destructed Performance ------------- Evolutions (2) 1000 Regions Visited (4) 800 Robots Destroyed (28) 140 Value Destroyed (689) 689 Prototype IDs (2) 40 Alien Tech Used (0) 0 Bonus (0) 0 TOTAL SCORE: 2669 Bonus ------- None Cogmind --------- Core Integrity 472/550 Matter 300/300 Energy 125/125 System Corruption 0% Temperature Cool (-100) Movement Walking (240) Ox4 Location -8/Materials Parts ------- > --- POWER (2) -------- Light Ion Engine > --- PROPULSION (3) --- Aluminum Leg > --- UTILITY (4) ------ Cryofiber Web High-capacity Storage Unit Visual Processing Unit Improved Sensor Array > --- WEAPON (2) ------- Heavy Hammer Heavy Flail > --- INVENTORY (12) --- Improved Heat Sink High-capacity Storage Unit Large Matter Pod (150) Sensor Array Signal Interpreter Terrain Scanner Advanced Targeting Computer Armor Integrity Analyzer Propulsion Shielding Beam Rifle EM Pulse Cannon Beam Cannon Peak State ------------ > --- POWER ------------ Light Ion Engine Improved Ion Engine > --- PROPULSION ------- Aluminum Leg Aluminum Leg Carbon-fiber Leg > --- UTILITY ---------- Cryofiber Web High-capacity Storage Unit Weight Redist. System Visual Processing Unit > --- WEAPON ----------- High-powered Shotgun Heavy Flail > --- INVENTORY -------- Ion Engine Ion Engine Improved Heat Sink High-capacity Storage Unit Large Matter Pod Sensor Array Signal Interpreter Terrain Scanner Armor Integrity Analyzer Propulsion Shielding Beam Cannon Heavy Hammer [Rating: 23] Favorites ----------- Power Light Ion Engine Engine Light Ion Engine Propulsion Aluminum Leg Leg Aluminum Leg Utility High-capacity Storage Unit Device Weight Redist. System Storage High-capacity Storage Unit Processor Visual Processing Unit Hackware Hacking Suite Protection Hardened Light Armor Plating Weapon Assault Rifle Energy Gun EM Pulse Gun Energy Cannon Beam Cannon Ballistic Gun Assault Rifle Impact Weapon Heavy Flail Build | -11 -10 -9 -9 -8 ------- Run | Scr Mat Mat Min Mat Slots Evolved 4 | . . 2 . 2 Power 1 | . . . . 1 Propulsion 1 | . . . . 1 Utility 2 | . . 2 . . Weapon . | . . . . . Parts Attached 38 | 5 6 7 1 19 Power 11 | 1 1 2 . 7 Engine 11 | 1 1 2 . 7 Core . | . . . . . Reactor . | . . . . . Propulsion 6 | 2 . 1 . 3 Treads . | . . . . . Leg 6 | 2 . 1 . 3 Wheel . | . . . . . Hover . | . . . . . Flight . | . . . . . Utility 12 | 1 3 3 . 5 Device 4 | . 1 1 . 2 Storage 2 | 1 1 . . . Processor 2 | . 1 . . 1 Hackware 1 | . . 1 . . Protection 3 | . . 1 . 2 Artifact . | . . . . . Weapon 9 | 1 2 1 1 4 Energy Gun 2 | 1 1 . . . Energy Cannon 2 | . . . 1 1 Ballistic Gun 3 | . 1 1 . 1 Ballistic Cannon . | . . . . . Launcher . | . . . . . Special Weapon . | . . . . . Impact Weapon 2 | . . . . 2 Slashing Weapon . | . . . . . Piercing Weapon . | . . . . . Special Melee Weapon . | . . . . . Unidentified Prototypes . | . . . . . Parts Lost 7 | . 1 1 . 5 Power 3 | . 1 . . 2 Propulsion 2 | . . . . 2 Utility 1 | . . . . 1 Weapon 1 | . . 1 . . Highest Loss Streak 3 | . 1 1 . 3 Average Slot Usage (%) 95 | . 95 99 100 91 Engine 13 | . 14 11 11 14 Leg 25 | . 28 22 22 24 Device 11 | . 3 15 11 15 Storage 13 | . 19 11 11 9 Processor 3 | . 3 . . 7 Hackware 3 | . . 6 11 2 Protection 3 | . . 11 11 1 Energy Gun 7 | . 14 11 4 . Energy Cannon 1 | . . . 6 1 Ballistic Gun 8 | . 10 10 11 6 Impact Weapon 3 | . . . . 9 Naked Turns . | . . . . . Heaviest Build 51 | 10 44 46 46 51 Greatest Support 41 | 20 26 26 26 41 Greatest Overweight (x) 4 | . 2 1 1 4 Average Overweight (x) 1 | . 1 1 1 1 Largest Inventory Capacity 14 | 6 14 12 12 12 Average Capacity 11 | 5 12 12 12 12 Most Carried 12 | 4 10 12 12 12 Average Carried 8 | 2 4 9 11 11 Final Capacity 12 | 6 12 12 12 12 Final Carried 12 | 3 8 12 12 12 Class Distribution -------------------- 47% | Mutant 32% | Scavenger-Mutant 20% | Hacker-Mutant Dominant Class ---------------- Mutant | -10/Materials Hacker-Mutant | -9/Materials Hacker-Mutant | -9/Mines Scavenger-Mutant | -8/Materials Resources | -11 -10 -9 -9 -8 ----------- Run | Scr Mat Mat Min Mat Matter Collected 936 | 250 112 259 35 280 Remotely . | . . . . . Salvage Created 941 | 100 112 334 . 395 Parts 59 | 1 10 32 . 16 Haulers Intercepted . | . . . . . Recyclers Shooed . | . . . . . Parts Field Recycled . | . . . . . Retrieved Matter . | . . . . . Parts Self-Destructed . | . . . . . Prevented . | . . . . . Kills | -11 -10 -9 -9 -8 ------- Run | Scr Mat Mat Min Mat Combat Hostiles Destroyed 14 | . 2 7 . 5 Guns 10 | . 2 5 . 3 AOE 2 | . . 2 . . Classes Destroyed 9 | 1 2 3 . 3 Worker 4 | . . 2 . 2 Recycler 3 | 1 . 1 . 1 Mechanic 1 | . . . . 1 Operator 1 | . . 1 . . Watcher 5 | . 2 2 . 1 Swarmer 3 | . . 3 . . Grunt 8 | . 2 4 . 2 Sentry 2 | . . . . 2 Hunter 1 | . . . . 1 Best Kill Streak 4 | 1 2 4 . 3 Combat Bots Only 4 | . 2 4 . 2 Max Kills in Single Turn 4 | 1 1 4 . 1 Gunslinging . | . . . . . Exploded 2 | . . 2 . . Melee . | . . . . . Uniques/NPCs Destroyed . | . . . . . Combat | -11 -10 -9 -9 -8 -------- Run | Scr Mat Mat Min Mat Damage Taken 1065 | . 181 272 . 612 Core 142 | . 42 22 . 78 Absorbed by Shields . | . . . . . Core Remaining (%) 92 | 100 83 . 94 . Volleys Fired 169 | 4 108 25 . 32 Largest 2 | 1 2 2 . 1 Hottest 60 | 40 60 60 . 60 Shots Fired 226 | 4 140 50 . 32 Gun 224 | 4 140 50 . 30 Cannon 2 | . . . . 2 Launcher . | . . . . . Special . | . . . . . Kinetic 90 | . 35 25 . 30 Thermal 111 | 4 105 . . 2 Explosive . | . . . . . Electromagnetic 25 | . . 25 . . Robot Hit Streak 23 | 4 13 23 . 9 Robot Miss Streak 3 | . 1 2 . 3 Penetration Max . | . . . . . Secondary Targets 1 | . 1 . . . Max Gunslinging Chain 1 | . 1 . . . Shots Hit Robots 111 | 4 23 31 . 53 Core Hits 45 | 2 9 18 . 16 Critical Hits . | . . . . . Critical Kills . | . . . . . Critical Parts Destroyed . | . . . . . Melee Attacks 25 | . . . . 25 Impact 25 | . . . . 25 Slashing . | . . . . . Piercing . | . . . . . Sneak Attacks 4 | . . . . 4 Combat Hostiles . | . . . . . Follow-up Attacks 1 | . . . . 1 Damage Inflicted 2499 | 43 234 761 . 1461 Guns 1146 | 43 234 331 . 538 Cannons 18 | . . . . 18 Explosions 430 | . . 430 . . Melee 899 | . . . . 899 Ramming 6 | . . . . 6 Kinetic 778 | . 125 115 . 538 Thermal 170 | 43 109 . . 18 Explosive 430 | . . 430 . . Electromagnetic 216 | . . 216 . . Impact 899 | . . . . 899 Slashing . | . . . . . Piercing . | . . . . . Highest Corruption . | . . . . . Average Corruption . | . . . . . Corruption Purged . | . . . . . Overload Shots . | . . . . . Overflow Damage 204 | . 7 5 . 192 Projectiles . | . . . . . Explosions 12 | . 7 5 . . Melee 192 | . . . . 192 Knockbacks 6 | . . . . 6 Impact 5 | . . . . 5 Kinetic . | . . . . . Secondary 1 | . . . . 1 Self-Inflicted Damage 156 | . 67 89 . . Shots 2 | . 1 1 . . Rammed . | . . . . . Targets Rammed 2 | . . . . 2 Kicked 2 | . . . . 2 Crushed . | . . . . . Highest Temperature 75 | . 69 75 . . Average Temperature 26 | . 48 19 . . Received Heat Transfer 309 | . 84 45 . 180 Siege Activations . | . . . . . Robots Corrupted . | . . . . . Combat Hostiles . | . . . . . Parts Fried . | . . . . . Impact Corruptions 11 | . . . . 11 Robots Melted . | . . . . . Combat Hostiles . | . . . . . Parts Melted . | . . . . . Heat Transferred 387 | 100 250 . . 37 Parts Sabotaged . | . . . . . Parts Stolen . | . . . . . Parts Stripped . | . . . . . Power Chain Reactions . | . . . . . Missiles Intercepted . | . . . . . Alert | -11 -10 -9 -9 -8 ------- Run | Scr Mat Mat Min Mat Peak Influence 271 | 5 89 271 23 98 Initial 23 | . 2 . 23 7 Average 41 | 2 35 100 23 26 Maximum Alert Level 1 | . . 1 . . Low Security (%) 96 | 100 100 76 100 100 Level 1 3 | . . 23 . . Level 2 . | . . . . . Level 3 . | . . . . . Level 4 . | . . . . . Level 5 . | . . . . . High Security . | . . . . . Max Security . | . . . . . Squads Dispatched 1 | . . 1 . . Investigation . | . . . . . Extermination . | . . . . . Reinforcement 1 | . . 1 . . Assault . | . . . . . Garrison . | . . . . . Intercept . | . . . . . Construction Impeded . | . . . . . Haulers Reinforced . | . . . . . Stealth | -11 -10 -9 -9 -8 --------- Run | Scr Mat Mat Min Mat Distress Signals 3 | . 1 . . 2 Communications Jammed . | . . . . . Distress Signals . | . . . . . Times Spotted 36 | . 7 13 . 16 Peak Tracking Total 6 | . 4 4 . 6 Tactical Retreats 1 | . . 1 . . Traps | -11 -10 -9 -9 -8 ------- Run | Scr Mat Mat Min Mat Traps Triggered 5 | . . 1 . 4 Indirectly . | . . . . . Trap Hack Attempts . | . . . . . Triggered . | . . . . . Disarmed . | . . . . . Reprogrammed . | . . . . . Reused . | . . . . . Traps Extracted . | . . . . . Installed . | . . . . . Triggered . | . . . . . Machines | -11 -10 -9 -9 -8 ---------- Run | Scr Mat Mat Min Mat Machines Disabled 5 | . 3 2 . . Max in Single Turn 2 | . 2 1 . . Machines Sabotaged . | . . . . . Garrisons Compromised . | . . . . . Overloaded Fab Kills . | . . . . . Fab Network Shutdowns . | . . . . . Hacking | -11 -10 -9 -9 -8 --------- Run | Scr Mat Mat Min Mat Machines Accessed 9 | . 4 2 . 3 Terminals 6 | . 3 2 . 1 Fabricators . | . . . . . Repair Stations 1 | . . . . 1 Recycling Units 1 | . 1 . . . Scanalyzers 1 | . . . . 1 Garrison Access . | . . . . . Total Hacks 40 | . 16 11 . 13 Successful 33 | . 13 9 . 11 Failed 7 | . 3 2 . 2 Catastrophic . | . . . . . Database Lockouts . | . . . . . Manual . | . . . . . Terminals 27 | . 11 11 . 5 Fabricators . | . . . . . Repair Stations 6 | . . . . 6 Recycling Units 5 | . 5 . . . Scanalyzers 2 | . . . . 2 Garrison Access . | . . . . . Terminal Hacks 21 | . 9 9 . 3 Record 9 | . 4 5 . . Prototype ID Bank 1 | . 1 . . . Emergency Access Points 1 | . 1 . . . Terminal Index 1 | . . 1 . . Alert Level 3 | . 2 . . 1 Dispatch Records 1 | . . 1 . . Maintenance Status 1 | . 1 . . . Investigation Status 1 | . . 1 . . Hauler Manifests 1 | . . . . 1 Registered Prototypes 1 | . . 1 . . Zone Layout 1 | . . . . 1 Fabricator Hacks . | . . . . . Repair Station Hacks 6 | . . . . 6 Scan Component 3 | . . . . 3 Repair 3 | . . . . 3 Recycling Unit Hacks 4 | . 4 . . . Recycle Component 1 | . 1 . . . Process 1 | . 1 . . . Report Inventory 1 | . 1 . . . Retrieve Matter 1 | . 1 . . . Scanalyzer 2 | . . . . 2 Insert Component 1 | . . . . 1 Analyze 1 | . . . . 1 Garrison Access Hacks . | . . . . . Unauthorized Hacks . | . . . . . Terminals . | . . . . . Fabricators . | . . . . . Repair Stations . | . . . . . Recycling Units . | . . . . . Scanalyzers . | . . . . . Garrison Access . | . . . . . Data Cores Recovered 1 | . . 1 . . Used . | . . . . . Hacking Detections 7 | . 3 2 . 2 Full Trace Events . | . . . . . Feedback Events . | . . . . . Feedback Blocked . | . . . . . Robot Schematics Acquired . | . . . . . Robots Built . | . . . . . Matter . | . . . . . Time . | . . . . . Total Robot Build Rating . | . . . . . Part Schematics Acquired 1 | . . . . 1 Parts Built . | . . . . . Matter . | . . . . . Time . | . . . . . Total Part Build Rating . | . . . . . Parts Repaired 3 | . . . . 3 Time 90 | . . . . 90 Parts Recycled 1 | . 1 . . . Recycled Matter 129 | . 129 . . . Retrieved Matter 129 | . 129 . . . Retrieved Components . | . . . . . Parts Scanalyzed 1 | . . . . 1 Part Schematics Acquired 1 | . . . . 1 Parts Damaged . | . . . . . Bothacking | -11 -10 -9 -9 -8 ------------ Run | Scr Mat Mat Min Mat Used RIF Installer . | . . . . . Robots Hacked . | . . . . . Non-combat . | . . . . . Combat . | . . . . . Robot Hacks Applied . | . . . . . Relay Couplers Released . | . . . . . Robots Rewired . | . . . . . Allies Hacked . | . . . . . Hacks Repelled . | . . . . . Allies | -11 -10 -9 -9 -8 -------- Run | Scr Mat Mat Min Mat Total Allies . | . . . . . Largest Group . | . . . . . Highest-Rated Group . | . . . . . Highest-Rated Ally . | . . . . . Total Orders . | . . . . . Ally Attacks . | . . . . . Total Damage . | . . . . . Kills . | . . . . . Allies Corrupted . | . . . . . Allies Melted . | . . . . . Intel | -11 -10 -9 -9 -8 ------- Run | Scr Mat Mat Min Mat Robot Analysis Total . | . . . . . Derelict Logs Recovered . | . . . . . Drone Launches . | . . . . . Drone Recoveries . | . . . . . Exploration | -11 -10 -9 -9 -8 ------------- Run | Scr Mat Mat Min Mat Turns Passed 2407 | 92 803 406 251 855 Spaces Moved 1190 | 68 342 207 166 407 Core 20 | 20 . . . . Treads . | . . . . . Legs 1170 | 48 342 207 166 407 Wheels . | . . . . . Hover . | . . . . . Flight . | . . . . . Fastest Speed 50 | 50 120 150 150 120 Average Speed 151 | 99 154 150 150 157 Slowest Speed 240 | 120 180 150 150 240 Overloaded Moves . | . . . . . Propulsion Burnouts . | . . . . . Robots Hopped . | . . . . . Cave-ins Triggered . | . . . . . Exploration Rate (%) 25 | 5 37 16 47 21 Regions Visited 4 Branch Regions 1 Pre-discovered Areas 1 | . . . 1 . Known Exits Taken . | . . . . . Unknown Exits Taken 4 | 1 1 1 1 . Scrap Searched 1 | . . . 1 . Spaces Dug . | . . . . . Terrain Destroyed 53 | . 36 17 . . Melee . | . . . . . Projectile . | . . . . . AOE 53 | . 36 17 . . Terrain Rammed . | . . . . . Walls Destroyed . | . . . . . Machines Disabled . | . . . . . Actions | -11 -10 -9 -9 -8 --------- Run | Scr Mat Mat Min Mat Total 1528 | 89 478 256 169 536 Wait 46 | 3 8 1 . 34 Move 1186 | 67 341 206 165 407 Hop . | . . . . . Pick Up 42 | 9 11 10 1 11 Fast Attach 12 | . . 1 1 10 Attach 20 | 5 6 3 . 6 Detach 5 | . 3 1 . 1 Swap 6 | . . 3 . 3 Drop 16 | 1 1 6 2 6 Fire 169 | 4 108 25 . 32 Melee 24 | . . . . 24 Ram . | . . . . . Kick 2 | . . . . 2 Crush . | . . . . . Escape Stasis . | . . . . . Rewire . | . . . . . Trap . | . . . . . Miscellaneous . | . . . . . Route ------- -11/Scrapyard -10/Materials -9/Materials -9/Mines -8/Materials History --------- Turn | Location | Event 13 | -11/Scrapyard | Discovered new exit (range 15) 93 | -11/Scrapyard | Entered Materials 314 | -10/Materials | Build established: Mutant 816 | -10/Materials | Discovered new exit (range 10) 896 | -10/Materials | Entered another Materials area 896 | -9/Materials | Evolved 2 slots: Utility x2 1235 | -9/Materials | Discovered new exit (range 12) 1302 | -9/Materials | Entered Mines 1303 | -9/Mines | Learned location of Storage (-9) 1359 | -9/Mines | Assembled infested the area 1364 | -9/Mines | Assisted by a Guerilla fighting off Assembled 1384 | -9/Mines | Build established: Hacker-Mutant 1415 | -9/Mines | Discovered new exit (range 15) 1553 | -9/Mines | Entered Materials 1553 | -8/Materials | Evolved 2 slots: Power x1, Propulsion x1 1860 | -8/Materials | Build established: Scavenger-Mutant 1919 | -8/Materials | Repaired Hvy. Hammer 1945 | -8/Materials | Repaired Beam Cannon 1980 | -8/Materials | Repaired Hvy. Hammer 2232 | -8/Materials | Lost 3 parts (1p1n1u) 2408 | -8/Materials | Self-destructed Last Messages --------------- 2x Airjet 3x Lrn. Tractor Beam A-02 Transporter 5x Imp. Utility Shielding 1x Plasma Cutter A-02 Transporter 6x Imp. Medium Laser (2 escorts) A-02 Transporter 2x Hvy. Assault Rifle 1x VTOL Module A-02 Transporter 2x Terrain Scanner 1x Imp. Signal Interpreter 3x Titanium Leg A-02 Transporter 1x Hvy. EM Shotgun 4x Imp. Medium Laser 02376_ Acquired Adv. Targeting Computer. 02404_ Aluminum Leg destroyed. Map ----- +----------------------------------------------------+ | ?????????????????????????????????????????????????? | | ?????????????????????????????????????????????????? | | ?????????????????????????????????????????????????? | | ?????????????????????????????????????????????????? | | ?????????????????????????????????????????????????? | | ?????????????????????????????????????????????????? | | ??????????????????????????????????????######?????? | | ??????????????????????????????????????# ?????? | | ?????????????????????? ?????????????###/ ??????? | | ?????????????????????? ?????????????? ??????? | | ?????????????????????? ???????????????# ??????? | | ?????????????????????? ???????????????? ??????? | | ?????????????????????? ?????????????????# ######## | | ?????????????????????#?#????????????????# %%% | | ?????????????????????# #????????????????# ######## | | ?????????????????????#?#????###########?# #???# | | ?????????????????????# ###### !### ###?# | | ?????????????????????# ## """? # #?# | | ?????????????????????# ## """"" # #?# | | ?????????????????????#? ## """"" + #?# | | ?????????????????????#? ## """"" # #?#### | | ?????????????????????# ## """ # #????? | | ?????????????????????# ## ## ##????? | | ????????????????####?# ###### % ## #?????? | | ???????????????? #?# #########+####### #?????? | | ???????????????? #?# s @ #?????# #?????? | | ???????????????? ###+#######+#+#?????# #?????? | | ???????????????? # ? ## ####### ####??? | | ???????????????? #""" ## T # # # ""??? | | ???????????????? #""" ## # # # "T??? | | ???????????????? #""" ## # # # ??? | | ???????????????? + ## # # # ??? | | ????????????????#+## !## # # + ??? | | ???????????????? ################ # # ??? | | ???????????????? ##### ## # # ??? | | ???????????????? ? + ##+#+### # ??? | | ????????????????####### # ####??? | | ???????????????? #?# + #?????? | | ???????????????? #?# # #??#??? | | ???????????????? #?# ""T"" ####+### ####??? | | ???????????????? #?# """"" ## ## ## ??? | | ???????????????? #?# ## ## ## ??? | | ???????????????? ############## ## ## ??? | | ???????????????? # """ """ ## ## ## ??? | | ?????????????????????????????????????????????????? | | ?????????????????????????????????????????????????? | | ?????????????????????????????????????????????????? | | ?????????????????????????????????????????????????? | | ?????????????????????????????????????????????????? | | ?????????????????????????????????????????????????? | +----------------------------------------------------+ Best States ------------- Heat Dissipation 31 Energy Generation 17 Energy Capacity 400 Matter Stores 300 Matter Capacity 300 Sight Range 18 Robot Scan Range 13 Terrain Scan Range 14 Terrain Scan Density 60 Additional Mass Support 6 Base Temperature (-) 100 Armor Coverage 150 Resistance: KI 20 Resistance: TH 20 Resistance: EX 20 Resistance: EM 20 Resistance: I 20 Resistance: S 20 Resistance: P 20 Evasion (%) 50 Offensive Hacking 20 Item Schematics ----------------- Signal Interpreter | -8/Materials | Scanalyzed Robot Schematics ------------------ None Fabricated ------------ Nothing Alien Tech Used ----------------- None Achievements -------------- None Challenges ------------ None Game ------ Seed FocalWarpBroadsword Manual? 0 Play Time 00:33:00 Cumulative 16.1 hours Start 2021.10.24 @ 21:21:19 End 2021.10.28 @ 14:38:43 Sessions 5 Manual Loads 0 Difficulty Adventurer Special Mode None Game No. 14 Rogue 1 Adventurer 13 Explorer 0 Win Type - Total 1 Types 1/0/0/0/0/0/0/0/0 Lore% 31 Gallery% 28 Achievement% 32 Wizard Run 0 Options --------- ASCII 1 Keyboard 1 Movement Numpad Keybinds 0 Fullscreen 1 Font 18/X11Bold Map View 76x50 Tactical HUD 1 Map Filters NONE Filters NONE Steam 1 RUN: 8673b1ac-7884-487e-afb7-a4a7444318c7